[Event "*** Titled Tuesday Blitz"]
[Site "Chess.com"]
[Date "2021.02.09"]
[Round "6"]
[White "StockholmMissile"]
[Black "rogapa"]
[Result "0-1"]
[WhiteElo "2508"]
[BlackElo "2738"]
[TimeControl "180+1"]
[EndTime "11:07:53 PST"]
[Termination "rogapa won on time"]

1. d4 {[%clk 0:03:00.9]} 1... Nf6 {[%clk 0:02:57.3]} 2. c4 {[%clk 0:03:00.6]}
2... e6 {[%clk 0:02:58.2]} 3. Nf3 {[%clk 0:03:00.5]} 3... d5 {[%clk 0:02:59.1]}
4. Bg5 {[%clk 0:03:00]} 4... Be7 {[%clk 0:02:58.9]} 5. e3 {[%clk 0:03:00.1]}
5... O-O {[%clk 0:02:58.6]} 6. Qc2 {[%clk 0:03:00.1]} 6... c5 {[%clk 0:02:47.4]}
7. cxd5 {[%clk 0:02:53.9]} 7... exd5 {[%clk 0:02:35.2]} 8. Bxf6 {[%clk 0:02:50]}
8... Bxf6 {[%clk 0:02:33.3]} 9. Qxc5 {[%clk 0:02:49.5]} 9... Nc6 {[%clk
0:02:25.5]} 10. Nc3 {[%clk 0:02:35.3]} 10... Be6 {[%clk 0:02:23.4]} 11. Be2
{[%clk 0:02:34.2]} 11... a6 {[%clk 0:02:21.6]} 12. Qa3 {[%clk 0:02:17.6]} 12...
b5 {[%clk 0:02:17.1]} 13. Qb3 {[%clk 0:02:15.5]} 13... Na5 {[%clk 0:02:14]} 14.
Qd1 {[%clk 0:02:14.8]} 14... Nc4 {[%clk 0:01:57.9]} 15. Bxc4 {[%clk 0:01:50.7]}
15... dxc4 {[%clk 0:01:58.8]} 16. O-O {[%clk 0:01:46.6]} 16... b4 {[%clk
0:01:52.7]} 17. Ne4 {[%clk 0:01:45.9]} 17... Be7 {[%clk 0:01:47.8]} 18. a3
{[%clk 0:01:19.5]} 18... a5 {[%clk 0:01:39.6]} 19. Nc5 {[%clk 0:01:11]} 19...
Bd5 {[%clk 0:01:02.8]} 20. Qc2 {[%clk 0:00:27.7]} 20... Bxc5 {[%clk 0:00:56.1]}
21. dxc5 {[%clk 0:00:27.3]} 21... Qc7 {[%clk 0:00:55.9]} 22. e4 {[%clk
0:00:18.2]} 22... Be6 {[%clk 0:00:54.3]} 23. Nd4 {[%clk 0:00:12.5]} 23... Qxc5
{[%clk 0:00:53.2]} 24. Nxe6 {[%clk 0:00:12.6]} 24... fxe6 {[%clk 0:00:53.9]} 25.
axb4 {[%clk 0:00:10.2]} 25... axb4 {[%clk 0:00:54.8]} 26. Rxa8 {[%clk
0:00:08.3]} 26... Rxa8 {[%clk 0:00:53.8]} 27. Rc1 {[%clk 0:00:09.2]} 27... c3
{[%clk 0:00:46.2]} 28. bxc3 {[%clk 0:00:08.7]} 28... bxc3 {[%clk 0:00:47.1]} 29.
h3 {[%clk 0:00:07.1]} 29... Rc8 {[%clk 0:00:46]} 30. Rd1 {[%clk 0:00:04.2]}
30... h6 {[%clk 0:00:43]} 31. Qb3 {[%clk 0:00:02.5]} 31... Qc6 {[%clk
0:00:39.1]} 32. Re1 {[%clk 0:00:01.1]} 32... c2 {[%clk 0:00:38.3]} 0-1

[Event "*** Titled Tuesday Blitz"]
[Site "Chess.com"]
[Date "2021.02.09"]
[Round "6"]
[White "CalinGheorghiu"]
[Black "eCztery"]
[Result "1-0"]
[WhiteElo "2309"]
[BlackElo "2453"]
[TimeControl "180+1"]
[EndTime "11:07:57 PST"]
[Termination "CalinGheorghiu won by resignation"]

1. e4 {[%clk 0:02:59.8]} 1... c5 {[%clk 0:02:57.1]} 2. Nf3 {[%clk 0:02:51.4]}
2... g6 {[%clk 0:02:55.1]} 3. d4 {[%clk 0:02:50]} 3... cxd4 {[%clk 0:02:56]} 4.
Qxd4 {[%clk 0:02:49.1]} 4... Nf6 {[%clk 0:02:55.1]} 5. e5 {[%clk 0:02:49.7]}
5... Nc6 {[%clk 0:02:55.3]} 6. Qa4 {[%clk 0:02:50.3]} 6... Nd5 {[%clk
0:02:55.8]} 7. Qe4 {[%clk 0:02:50.9]} 7... Nc7 {[%clk 0:02:55.2]} 8. Nc3 {[%clk
0:02:47.7]} 8... Bg7 {[%clk 0:02:54.6]} 9. Bf4 {[%clk 0:02:46.4]} 9... O-O
{[%clk 0:02:54.3]} 10. Bd3 {[%clk 0:02:45.7]} 10... d5 {[%clk 0:02:53.4]} 11.
exd6 {[%clk 0:02:45.4]} 11... exd6 {[%clk 0:02:53.9]} 12. O-O-O {[%clk
0:02:44.8]} 12... d5 {[%clk 0:02:53.8]} 13. Qa4 {[%clk 0:02:25.6]} 13... Ne6
{[%clk 0:02:47.2]} 14. Bb5 {[%clk 0:02:05.2]} 14... d4 {[%clk 0:02:42.8]} 15.
Bxc6 {[%clk 0:01:47.4]} 15... bxc6 {[%clk 0:02:43.7]} 16. Bg3 {[%clk 0:01:33.2]}
16... c5 {[%clk 0:02:05.2]} 17. Ne4 {[%clk 0:01:18.8]} 17... Bb7 {[%clk
0:01:59]} 18. Rhe1 {[%clk 0:00:51.3]} 18... Bxe4 {[%clk 0:01:43.5]} 19. Rxe4
{[%clk 0:00:49.8]} 19... Rc8 {[%clk 0:01:33.6]} 20. Qc4 {[%clk 0:00:39.2]} 20...
Qa5 {[%clk 0:01:25.1]} 21. h4 {[%clk 0:00:32.9]} 21... Rc6 {[%clk 0:01:19.8]}
22. h5 {[%clk 0:00:20.8]} 22... Ra6 {[%clk 0:01:16.9]} 23. hxg6 {[%clk
0:00:19.7]} 23... hxg6 {[%clk 0:01:15.8]} 24. a3 {[%clk 0:00:16.1]} 24... Rb6
{[%clk 0:01:14.5]} 25. Rh1 {[%clk 0:00:15.8]} 25... d3 {[%clk 0:01:14.2]} 26. c3
{[%clk 0:00:16.2]} 26... Qb5 {[%clk 0:01:04.3]} 27. Qxb5 {[%clk 0:00:13.3]}
27... Rxb5 {[%clk 0:01:05.2]} 28. Reh4 {[%clk 0:00:13.5]} 28... Rd8 {[%clk
0:01:00.4]} 29. Nd2 {[%clk 0:00:13.1]} 29... Bf6 {[%clk 0:00:57.7]} 30. R4h2
{[%clk 0:00:10.2]} 30... Kf8 {[%clk 0:00:54.9]} 31. f4 {[%clk 0:00:09.3]} 31...
Rdb8 {[%clk 0:00:49.4]} 32. f5 {[%clk 0:00:09]} 32... Rxb2 {[%clk 0:00:48.8]}
33. Bxb8 {[%clk 0:00:08.6]} 33... Rxb8 {[%clk 0:00:49.7]} 34. fxe6 {[%clk
0:00:08.8]} 34... Bxc3 {[%clk 0:00:47.3]} 35. Rh8+ {[%clk 0:00:08.6]} 35... Bxh8
{[%clk 0:00:46.6]} 36. Rxh8+ {[%clk 0:00:09.1]} 1-0

[Event "*** Titled Tuesday Blitz"]
[Site "Chess.com"]
[Date "2021.02.09"]
[Round "6"]
[White "KetiGrant"]
[Black "KruHor"]
[Result "1-0"]
[WhiteElo "2360"]
[BlackElo "2554"]
[TimeControl "180+1"]
[EndTime "11:08:00 PST"]
[Termination "KetiGrant won by resignation"]

1. e4 {[%clk 0:03:00.9]} 1... c5 {[%clk 0:02:58.6]} 2. Nf3 {[%clk 0:03:00.3]}
2... d6 {[%clk 0:02:58.4]} 3. Bb5+ {[%clk 0:02:59.7]} 3... Bd7 {[%clk
0:02:56.6]} 4. Bxd7+ {[%clk 0:02:59]} 4... Nxd7 {[%clk 0:02:56.4]} 5. O-O {[%clk
0:02:58.4]} 5... Ngf6 {[%clk 0:02:55.8]} 6. Re1 {[%clk 0:02:58.1]} 6... e6
{[%clk 0:02:53.2]} 7. c3 {[%clk 0:02:58.3]} 7... Rc8 {[%clk 0:02:39.4]} 8. d4
{[%clk 0:02:56.5]} 8... cxd4 {[%clk 0:02:38.6]} 9. cxd4 {[%clk 0:02:57.4]} 9...
d5 {[%clk 0:02:38.6]} 10. e5 {[%clk 0:02:50]} 10... Ne4 {[%clk 0:02:38.3]} 11.
Nbd2 {[%clk 0:02:47.3]} 11... Nxd2 {[%clk 0:02:19.4]} 12. Bxd2 {[%clk
0:02:46.2]} 12... Be7 {[%clk 0:02:17.6]} 13. a4 {[%clk 0:02:13.7]} 13... O-O
{[%clk 0:02:15.8]} 14. a5 {[%clk 0:02:13.1]} 14... Nb8 {[%clk 0:02:11.5]} 15.
Qb3 {[%clk 0:02:04.2]} 15... Qd7 {[%clk 0:02:10.8]} 16. h4 {[%clk 0:02:01.6]}
16... Rc4 {[%clk 0:02:05.6]} 17. Qd3 {[%clk 0:01:59]} 17... Rfc8 {[%clk
0:01:52.8]} 18. Bc3 {[%clk 0:01:41.2]} 18... h6 {[%clk 0:01:48.1]} 19. g3 {[%clk
0:01:37.4]} 19... Na6 {[%clk 0:01:47]} 20. Kg2 {[%clk 0:01:30.3]} 20... Bb4
{[%clk 0:01:45.9]} 21. Rec1 {[%clk 0:01:09.1]} 21... Bxc3 {[%clk 0:01:26.9]} 22.
bxc3 {[%clk 0:01:04.7]} 22... Nc7 {[%clk 0:01:16.4]} 23. Nd2 {[%clk 0:00:58.5]}
23... Ra4 {[%clk 0:01:13.2]} 24. Rab1 {[%clk 0:00:50.2]} 24... Qc6 {[%clk
0:01:02.4]} 25. Nb3 {[%clk 0:00:37.5]} 25... Na6 {[%clk 0:01:02]} 26. Qd2 {[%clk
0:00:29.5]} 26... Rc4 {[%clk 0:01:00.1]} 27. Kh2 {[%clk 0:00:27.7]} 27... Rxc3
{[%clk 0:00:56.5]} 28. Rxc3 {[%clk 0:00:25.2]} 28... Qxc3 {[%clk 0:00:55.7]} 29.
Rc1 {[%clk 0:00:24.2]} 29... Qxb3 {[%clk 0:00:46.5]} 30. Rxc8+ {[%clk 0:00:24]}
30... Kh7 {[%clk 0:00:46.1]} 31. Qf4 {[%clk 0:00:23.8]} 31... Qd3 {[%clk
0:00:23.3]} 32. Qxf7 {[%clk 0:00:18.9]} 32... Qxd4 {[%clk 0:00:22.9]} 33. h5
{[%clk 0:00:15.9]} 1-0

[Event "*** Titled Tuesday Blitz"]
[Site "Chess.com"]
[Date "2021.02.09"]
[Round "6"]
[White "Etud-otradnoe"]
[Black "HajiyevKanan"]
[Result "0-1"]
[WhiteElo "2306"]
[BlackElo "2488"]
[TimeControl "180+1"]
[EndTime "11:08:00 PST"]
[Termination "HajiyevKanan won on time"]

1. e4 {[%clk 0:03:00.9]} 1... c6 {[%clk 0:02:55]} 2. d4 {[%clk 0:03:00]} 2... d5
{[%clk 0:02:55.9]} 3. e5 {[%clk 0:02:59.8]} 3... a6 {[%clk 0:02:56.5]} 4. c4
{[%clk 0:02:55]} 4... Bf5 {[%clk 0:02:56.3]} 5. Nc3 {[%clk 0:02:54.1]} 5... e6
{[%clk 0:02:56.6]} 6. a3 {[%clk 0:02:51]} 6... h6 {[%clk 0:02:55.9]} 7. Be3
{[%clk 0:02:33.1]} 7... Nd7 {[%clk 0:02:54.8]} 8. c5 {[%clk 0:02:32.2]} 8... f6
{[%clk 0:02:51.5]} 9. f4 {[%clk 0:02:31.3]} 9... fxe5 {[%clk 0:02:49]} 10. fxe5
{[%clk 0:02:31.2]} 10... g5 {[%clk 0:02:47.2]} 11. Qh5+ {[%clk 0:02:24.6]} 11...
Ke7 {[%clk 0:02:47.5]} 12. Nge2 {[%clk 0:01:02]} 12... Bg7 {[%clk 0:02:44.2]}
13. Ng3 {[%clk 0:00:59.1]} 13... Qe8 {[%clk 0:02:36]} 14. Be2 {[%clk 0:00:54.2]}
14... Qxh5 {[%clk 0:02:15]} 15. Nxh5 {[%clk 0:00:53.2]} 15... Rh7 {[%clk
0:02:13]} 16. g4 {[%clk 0:00:52.5]} 16... Bg6 {[%clk 0:02:11.1]} 17. Nxg7 {[%clk
0:00:46]} 17... Rxg7 {[%clk 0:02:10.8]} 18. h4 {[%clk 0:00:46.2]} 18... gxh4
{[%clk 0:02:07.5]} 19. Rxh4 {[%clk 0:00:45.7]} 19... Rf8 {[%clk 0:02:02.6]} 20.
Kd2 {[%clk 0:00:39.9]} 20... a5 {[%clk 0:01:57.3]} 21. Rah1 {[%clk 0:00:31]}
21... b6 {[%clk 0:01:54.2]} 22. b4 {[%clk 0:00:29.7]} 22... axb4 {[%clk
0:01:51.6]} 23. axb4 {[%clk 0:00:29.4]} 23... Ra8 {[%clk 0:01:51.3]} 24. Bxh6
{[%clk 0:00:25.7]} 24... Nxh6 {[%clk 0:01:51.4]} 25. Rxh6 {[%clk 0:00:25.6]}
25... bxc5 {[%clk 0:01:47.4]} 26. bxc5 {[%clk 0:00:25]} 26... Rb8 {[%clk
0:01:46.9]} 27. R1h3 {[%clk 0:00:18.8]} 27... Rb2+ {[%clk 0:01:46.8]} 28. Ke3
{[%clk 0:00:18.8]} 28... Rb3 {[%clk 0:01:45.6]} 29. Kf4 {[%clk 0:00:18]} 29...
Rb2 {[%clk 0:01:35.5]} 30. g5 {[%clk 0:00:13]} 30... Rf7+ {[%clk 0:01:30.6]} 31.
Kg3 {[%clk 0:00:11.9]} 31... Bf5 {[%clk 0:01:26.1]} 32. Bh5 {[%clk 0:00:11.1]}
32... Rg7 {[%clk 0:01:20.6]} 33. Bg4 {[%clk 0:00:05]} 33... Rxg5 {[%clk
0:01:18.8]} 34. R3h4 {[%clk 0:00:04.6]} 34... Rb3 {[%clk 0:01:18.3]} 35. Rh7+
{[%clk 0:00:04]} 35... Bxh7 {[%clk 0:01:06.6]} 36. Rxh7+ {[%clk 0:00:03.3]}
36... Ke8 {[%clk 0:01:05.5]} 37. Kf4 {[%clk 0:00:03.5]} 37... Rxg4+ {[%clk
0:01:04.2]} 38. Kxg4 {[%clk 0:00:03.1]} 38... Rxc3 {[%clk 0:01:05.1]} 39. Rh8+
{[%clk 0:00:02.2]} 39... Nf8 {[%clk 0:01:05.1]} 40. Kg5 {[%clk 0:00:01.7]} 40...
Rf3 {[%clk 0:01:04.9]} 41. Kh6 {[%clk 0:00:01.2]} 41... Rh3+ {[%clk 0:01:04.6]}
0-1

[Event "*** Titled Tuesday Blitz"]
[Site "Chess.com"]
[Date "2021.02.09"]
[Round "6"]
[White "TheSodabread"]
[Black "cstevens1"]
[Result "0-1"]
[WhiteElo "2100"]
[BlackElo "2704"]
[TimeControl "180+1"]
[EndTime "11:08:00 PST"]
[Termination "cstevens1 won by checkmate"]

1. e4 {[%clk 0:03:00.9]} 1... c5 {[%clk 0:02:40.9]} 2. Nc3 {[%clk 0:02:57.9]}
2... e6 {[%clk 0:02:39.4]} 3. f4 {[%clk 0:02:58.8]} 3... d5 {[%clk 0:02:32.2]}
4. Nf3 {[%clk 0:02:57.2]} 4... dxe4 {[%clk 0:02:31.5]} 5. Nxe4 {[%clk
0:02:58.1]} 5... Nf6 {[%clk 0:02:30.4]} 6. Bb5+ {[%clk 0:02:56.8]} 6... Bd7
{[%clk 0:02:29.6]} 7. Nxf6+ {[%clk 0:02:56.1]} 7... Qxf6 {[%clk 0:02:28.8]} 8.
Bxd7+ {[%clk 0:02:56.6]} 8... Nxd7 {[%clk 0:02:29.6]} 9. d3 {[%clk 0:02:57.4]}
9... Bd6 {[%clk 0:02:29.3]} 10. g3 {[%clk 0:02:36.7]} 10... O-O {[%clk
0:02:15.6]} 11. O-O {[%clk 0:02:37.1]} 11... h6 {[%clk 0:02:09.7]} 12. Qe2
{[%clk 0:02:37]} 12... Rac8 {[%clk 0:01:54.5]} 13. c3 {[%clk 0:02:37.4]} 13...
Rfd8 {[%clk 0:01:48.4]} 14. Be3 {[%clk 0:02:37.3]} 14... Nb6 {[%clk 0:01:42.6]}
15. Rad1 {[%clk 0:02:34.6]} 15... Nd5 {[%clk 0:01:40]} 16. Bf2 {[%clk 0:02:27]}
16... Qe7 {[%clk 0:01:33.8]} 17. Ne5 {[%clk 0:02:25.8]} 17... Qc7 {[%clk
0:01:31.2]} 18. Nc4 {[%clk 0:02:25.6]} 18... Bf8 {[%clk 0:01:29.7]} 19. Ne3
{[%clk 0:02:21.3]} 19... Nxe3 {[%clk 0:01:22.7]} 20. Bxe3 {[%clk 0:02:22.2]}
20... Rd5 {[%clk 0:01:17.7]} 21. d4 {[%clk 0:02:09.5]} 21... cxd4 {[%clk
0:01:16.5]} 22. Bxd4 {[%clk 0:02:10.2]} 22... Bc5 {[%clk 0:01:15.9]} 23. Qe3
{[%clk 0:02:05.9]} 23... Rcd8 {[%clk 0:01:13.1]} 24. Rd2 {[%clk 0:01:53]} 24...
Bxd4 {[%clk 0:01:12.7]} 25. Rxd4 {[%clk 0:01:52.3]} 25... Rxd4 {[%clk
0:01:12.1]} 26. cxd4 {[%clk 0:01:52.6]} 26... Qb6 {[%clk 0:01:12.4]} 27. f5
{[%clk 0:01:39.3]} 27... exf5 {[%clk 0:01:07.4]} 28. Rxf5 {[%clk 0:01:34.8]}
28... Qxd4 {[%clk 0:00:57.4]} 29. Qxd4 {[%clk 0:01:25.7]} 29... Rxd4 {[%clk
0:00:58.3]} 30. Rb5 {[%clk 0:01:25.1]} 30... b6 {[%clk 0:00:56.3]} 31. Kg2
{[%clk 0:01:22.4]} 31... Rd2+ {[%clk 0:00:54.6]} 32. Kh3 {[%clk 0:01:22.4]}
32... g5 {[%clk 0:00:50.9]} 33. a4 {[%clk 0:01:22.1]} 33... Kg7 {[%clk
0:00:48.4]} 34. a5 {[%clk 0:01:21.9]} 34... bxa5 {[%clk 0:00:33]} 35. Rxa5
{[%clk 0:01:22.8]} 35... Kg6 {[%clk 0:00:32]} 36. Ra6+ {[%clk 0:00:54.1]} 36...
f6 {[%clk 0:00:31.6]} 37. Rxa7 {[%clk 0:00:53]} 37... h5 {[%clk 0:00:31.9]} 38.
g4 {[%clk 0:00:49.6]} 38... Rd3+ {[%clk 0:00:26.5]} 39. Kg2 {[%clk 0:00:49.1]}
39... hxg4 {[%clk 0:00:27.1]} 40. Rb7 {[%clk 0:00:45.3]} 40... Rd2+ {[%clk
0:00:25.4]} 41. Kg3 {[%clk 0:00:44.2]} 41... f5 {[%clk 0:00:25.1]} 42. Rb6+
{[%clk 0:00:39.7]} 42... Kh5 {[%clk 0:00:25.2]} 43. b4 {[%clk 0:00:35.5]} 43...
f4# {[%clk 0:00:25.5]} 0-1

[Event "*** Titled Tuesday Blitz"]
[Site "Chess.com"]
[Date "2021.02.09"]
[Round "6"]
[White "frederiksvane"]
[Black "Volodar_Murzin"]
[Result "0-1"]
[WhiteElo "2730"]
[BlackElo "2624"]
[TimeControl "180+1"]
[EndTime "11:08:01 PST"]
[Termination "Volodar_Murzin won by resignation"]

1. e4 {[%clk 0:03:00.9]} 1... c5 {[%clk 0:02:56.4]} 2. Nf3 {[%clk 0:03:00.9]}
2... d6 {[%clk 0:02:55]} 3. Bb5+ {[%clk 0:03:00.2]} 3... Nd7 {[%clk 0:02:52.9]}
4. d4 {[%clk 0:02:56.9]} 4... Nf6 {[%clk 0:02:46.5]} 5. Nc3 {[%clk 0:02:53.7]}
5... cxd4 {[%clk 0:02:36.7]} 6. Qxd4 {[%clk 0:02:54.6]} 6... a6 {[%clk
0:02:35.8]} 7. Bxd7+ {[%clk 0:02:54.6]} 7... Bxd7 {[%clk 0:02:36.4]} 8. Bg5
{[%clk 0:02:53.8]} 8... e6 {[%clk 0:02:33.8]} 9. O-O-O {[%clk 0:02:52.2]} 9...
Be7 {[%clk 0:02:31.8]} 10. e5 {[%clk 0:02:52.3]} 10... dxe5 {[%clk 0:02:28.5]}
11. Nxe5 {[%clk 0:02:53.2]} 11... Bc6 {[%clk 0:02:01.2]} 12. Nxc6 {[%clk
0:02:51]} 12... bxc6 {[%clk 0:02:00.2]} 13. Qc4 {[%clk 0:02:44.3]} 13... Qc7
{[%clk 0:01:57]} 14. Bxf6 {[%clk 0:02:39.5]} 14... Bxf6 {[%clk 0:01:50.9]} 15.
Ne4 {[%clk 0:02:39.8]} 15... Be7 {[%clk 0:01:48.9]} 16. Nc5 {[%clk 0:02:27.7]}
16... Qb6 {[%clk 0:01:27.4]} 17. Nd7 {[%clk 0:02:15.9]} 17... Qb5 {[%clk
0:01:17.9]} 18. Qe4 {[%clk 0:02:06]} 18... Rd8 {[%clk 0:01:07.1]} 19. Ne5 {[%clk
0:02:00.6]} 19... Rd5 {[%clk 0:01:01.1]} 20. f4 {[%clk 0:01:52.5]} 20... Bf6
{[%clk 0:00:27.5]} 21. c4 {[%clk 0:01:32.9]} 21... Qc5 {[%clk 0:00:19]} 22. Nd3
{[%clk 0:01:19.3]} 22... Qd4 {[%clk 0:00:17.7]} 23. Rhe1 {[%clk 0:01:20]} 23...
Rd6 {[%clk 0:00:11.6]} 24. Qxd4 {[%clk 0:01:10.5]} 24... Rxd4 {[%clk 0:00:10.8]}
25. b3 {[%clk 0:01:10.4]} 25... O-O {[%clk 0:00:10.1]} 26. g3 {[%clk 0:01:09.8]}
26... a5 {[%clk 0:00:06.5]} 27. Nc5 {[%clk 0:01:08.3]} 27... Rfd8 {[%clk
0:00:07]} 28. Rxd4 {[%clk 0:01:06.4]} 28... Bxd4 {[%clk 0:00:07.9]} 29. Rd1
{[%clk 0:01:03.1]} 29... Be3+ {[%clk 0:00:08]} 30. Kc2 {[%clk 0:00:50.2]} 30...
Rxd1 {[%clk 0:00:08.4]} 31. Kxd1 {[%clk 0:00:51.1]} 31... Bxc5 {[%clk
0:00:08.7]} 32. Kc2 {[%clk 0:00:47.7]} 32... Kf8 {[%clk 0:00:09.1]} 33. Kd3
{[%clk 0:00:45.9]} 33... Ke7 {[%clk 0:00:09.2]} 34. Ke4 {[%clk 0:00:46.8]} 34...
Kd6 {[%clk 0:00:09.5]} 35. g4 {[%clk 0:00:45.2]} 35... f6 {[%clk 0:00:08.9]} 36.
h4 {[%clk 0:00:45.1]} 36... g6 {[%clk 0:00:08.5]} 37. h5 {[%clk 0:00:44.8]}
37... f5+ {[%clk 0:00:08.8]} 38. gxf5 {[%clk 0:00:45.2]} 38... exf5+ {[%clk
0:00:09.4]} 39. Kf3 {[%clk 0:00:46.1]} 39... gxh5 {[%clk 0:00:09.3]} 40. Kg3
{[%clk 0:00:47]} 40... Be3 {[%clk 0:00:09.2]} 41. Kf3 {[%clk 0:00:46.9]} 41...
Bc1 {[%clk 0:00:09.3]} 0-1

[Event "*** Titled Tuesday Blitz"]
[Site "Chess.com"]
[Date "2021.02.09"]
[Round "6"]
[White "francyIM"]
[Black "Dave_ChessMate"]
[Result "1-0"]
[WhiteElo "2571"]
[BlackElo "2386"]
[TimeControl "180+1"]
[EndTime "11:08:01 PST"]
[Termination "francyIM won by resignation"]

1. d4 {[%clk 0:03:00.9]} 1... Nf6 {[%clk 0:02:58.9]} 2. Nf3 {[%clk 0:03:00.5]}
2... g6 {[%clk 0:02:57.4]} 3. Nbd2 {[%clk 0:02:59.6]} 3... d5 {[%clk 0:02:56.6]}
4. e3 {[%clk 0:02:55.8]} 4... Bg7 {[%clk 0:02:54.8]} 5. b3 {[%clk 0:02:56]} 5...
O-O {[%clk 0:02:54.9]} 6. Bb2 {[%clk 0:02:56.9]} 6... c6 {[%clk 0:02:41]} 7. h3
{[%clk 0:02:53.7]} 7... Bf5 {[%clk 0:02:41.3]} 8. Nh4 {[%clk 0:02:24.7]} 8...
Be6 {[%clk 0:02:28.6]} 9. Bd3 {[%clk 0:02:21.8]} 9... Nbd7 {[%clk 0:02:28.4]}
10. O-O {[%clk 0:02:20.3]} 10... Rc8 {[%clk 0:02:01.3]} 11. Nhf3 {[%clk
0:02:01.8]} 11... h6 {[%clk 0:01:52.7]} 12. c4 {[%clk 0:01:55.8]} 12... c5
{[%clk 0:01:48.5]} 13. Rc1 {[%clk 0:01:55.3]} 13... b6 {[%clk 0:01:42.6]} 14. a3
{[%clk 0:01:47.5]} 14... dxc4 {[%clk 0:01:35.8]} 15. Nxc4 {[%clk 0:01:41.3]}
15... Nd5 {[%clk 0:01:34.4]} 16. Qd2 {[%clk 0:01:36.9]} 16... cxd4 {[%clk
0:01:21.2]} 17. Nxd4 {[%clk 0:01:35.8]} 17... Nc5 {[%clk 0:01:20.7]} 18. Nxe6
{[%clk 0:01:32.9]} 18... Nxe6 {[%clk 0:01:19.3]} 19. Bxg7 {[%clk 0:01:32.3]}
19... Kxg7 {[%clk 0:01:15.1]} 20. Rfd1 {[%clk 0:01:32.1]} 20... Nc5 {[%clk
0:01:08.8]} 21. e4 {[%clk 0:01:30.7]} 21... Nf6 {[%clk 0:00:59.8]} 22. e5 {[%clk
0:01:17.3]} 22... Nxb3 {[%clk 0:00:51.4]} 23. exf6+ {[%clk 0:01:15.7]} 23...
exf6 {[%clk 0:00:52.3]} 24. Qe1 {[%clk 0:00:54.8]} 24... Nxc1 {[%clk 0:00:48.3]}
25. Bf1 {[%clk 0:00:54]} 25... Qc7 {[%clk 0:00:35.2]} 26. Nd6 {[%clk 0:00:51.6]}
26... Rcd8 {[%clk 0:00:30.4]} 27. Qb4 {[%clk 0:00:43.6]} 27... a5 {[%clk
0:00:21.1]} 28. Qf4 {[%clk 0:00:42.5]} 28... Nb3 {[%clk 0:00:14]} 29. Nf5+
{[%clk 0:00:40.7]} 29... gxf5 {[%clk 0:00:13.3]} 30. Qxc7 {[%clk 0:00:40.9]}
30... Rxd1 {[%clk 0:00:13.9]} 31. Qg3+ {[%clk 0:00:41.4]} 31... Kh7 {[%clk
0:00:10.4]} 32. Qxb3 {[%clk 0:00:42.3]} 32... Rfd8 {[%clk 0:00:09.3]} 33. Qxf7+
{[%clk 0:00:41.5]} 33... Kh8 {[%clk 0:00:09.8]} 34. Qxf6+ {[%clk 0:00:42.4]}
34... Kh7 {[%clk 0:00:09.2]} 35. Qxf5+ {[%clk 0:00:42.6]} 35... Kh8 {[%clk
0:00:10]} 36. g3 {[%clk 0:00:41]} 36... R1d7 {[%clk 0:00:08.9]} 37. Kg2 {[%clk
0:00:40.7]} 37... Rg7 {[%clk 0:00:07.9]} 1-0

[Event "*** Titled Tuesday Blitz"]
[Site "Chess.com"]
[Date "2021.02.09"]
[Round "6"]
[White "klimkoj"]
[Black "queen_iryna"]
[Result "1-0"]
[WhiteElo "2557"]
[BlackElo "2336"]
[TimeControl "180+1"]
[EndTime "11:08:02 PST"]
[Termination "klimkoj won by checkmate"]

1. e4 {[%clk 0:03:00.6]} 1... d6 {[%clk 0:03:00.1]} 2. d4 {[%clk 0:02:59]} 2...
Nf6 {[%clk 0:03:00]} 3. Nc3 {[%clk 0:02:58.2]} 3... e5 {[%clk 0:03:00.6]} 4. Nf3
{[%clk 0:02:57.1]} 4... Nbd7 {[%clk 0:03:01.1]} 5. Rg1 {[%clk 0:02:52.9]} 5...
g6 {[%clk 0:02:59.1]} 6. g4 {[%clk 0:02:36.2]} 6... Bg7 {[%clk 0:02:58]} 7. Be3
{[%clk 0:02:34.2]} 7... c6 {[%clk 0:02:56.1]} 8. Qd2 {[%clk 0:02:32.5]} 8... b5
{[%clk 0:02:36.8]} 9. g5 {[%clk 0:02:01.5]} 9... Nh5 {[%clk 0:02:34.8]} 10.
O-O-O {[%clk 0:02:00]} 10... Qa5 {[%clk 0:02:21.7]} 11. dxe5 {[%clk 0:01:46.4]}
11... Nxe5 {[%clk 0:01:58.7]} 12. Nxe5 {[%clk 0:01:44.2]} 12... Bxe5 {[%clk
0:01:28.4]} 13. f4 {[%clk 0:01:36]} 13... Bxc3 {[%clk 0:01:23]} 14. Qxc3 {[%clk
0:01:34.8]} 14... Qxc3 {[%clk 0:01:22.9]} 15. bxc3 {[%clk 0:01:35.7]} 15... Ke7
{[%clk 0:01:18.5]} 16. Be2 {[%clk 0:01:32.6]} 16... Be6 {[%clk 0:01:18.1]} 17.
Kb2 {[%clk 0:01:19.9]} 17... Bc4 {[%clk 0:01:14.5]} 18. Bxh5 {[%clk 0:01:18.9]}
18... gxh5 {[%clk 0:01:13.7]} 19. Bd4 {[%clk 0:01:17.8]} 19... Rhc8 {[%clk
0:01:06.4]} 20. Bf6+ {[%clk 0:01:04.7]} 20... Ke8 {[%clk 0:01:06]} 21. Rxd6
{[%clk 0:01:03.5]} 21... a5 {[%clk 0:01:03.3]} 22. f5 {[%clk 0:00:56.2]} 22...
b4 {[%clk 0:01:01.6]} 23. a3 {[%clk 0:00:30.1]} 23... bxa3+ {[%clk 0:00:38]} 24.
Kxa3 {[%clk 0:00:31]} 24... a4 {[%clk 0:00:34.4]} 25. Rb1 {[%clk 0:00:30.2]}
25... Bb5 {[%clk 0:00:33]} 26. Rb4 {[%clk 0:00:28.8]} 26... Ra7 {[%clk
0:00:29.4]} 27. c4 {[%clk 0:00:28.8]} 27... Ba6 {[%clk 0:00:26.5]} 28. Rxa4
{[%clk 0:00:27.2]} 28... Rca8 {[%clk 0:00:26.2]} 29. Kb2 {[%clk 0:00:22.1]}
29... Rb8+ {[%clk 0:00:23.1]} 30. Kc3 {[%clk 0:00:21.5]} 30... Rba8 {[%clk
0:00:19.3]} 31. c5 {[%clk 0:00:20.6]} 31... Bb5 {[%clk 0:00:18.5]} 32. Rxa7
{[%clk 0:00:20.2]} 32... Rxa7 {[%clk 0:00:17.4]} 33. Rd8# {[%clk 0:00:19.8]} 1-0